[Event "*** Titled Tuesday Blitz"]
[Site "Chess.com"]
[Date "2020.11.10"]
[Round "2"]
[White "MVM2008"]
[Black "Lady_Nika"]
[Result "1/2-1/2"]
[WhiteElo "2186"]
[BlackElo "2397"]
[TimeControl "180+1"]
[EndTime "10:24:12 PST"]
[Termination "Game drawn - insufficient material"]

1. e4 {[%clk 0:03:00.9]} 1... e6 {[%clk 0:02:59.7]} 2. d4 {[%clk 0:03:00.5]}
2... d5 {[%clk 0:02:59.5]} 3. Nd2 {[%clk 0:03:01.1]} 3... Nf6 {[%clk 0:02:59.2]}
4. e5 {[%clk 0:02:58.5]} 4... Nfd7 {[%clk 0:02:57]} 5. Bd3 {[%clk 0:02:59]} 5...
c5 {[%clk 0:02:55.5]} 6. c3 {[%clk 0:02:59.6]} 6... Nc6 {[%clk 0:02:55.5]} 7.
Ngf3 {[%clk 0:02:59.7]} 7... Qb6 {[%clk 0:02:55.6]} 8. O-O {[%clk 0:03:00]} 8...
cxd4 {[%clk 0:02:55.8]} 9. cxd4 {[%clk 0:03:00.9]} 9... Nxd4 {[%clk 0:02:56.2]}
10. Nxd4 {[%clk 0:03:01.8]} 10... Qxd4 {[%clk 0:02:56.8]} 11. Nf3 {[%clk
0:03:02.7]} 11... Qb6 {[%clk 0:02:57]} 12. Be3 {[%clk 0:03:02.3]} 12... Bc5
{[%clk 0:02:57.2]} 13. Bd2 {[%clk 0:03:02.8]} 13... h6 {[%clk 0:02:56.6]} 14. a3
{[%clk 0:02:58.2]} 14... O-O {[%clk 0:02:56.1]} 15. Qc1 {[%clk 0:02:42.8]} 15...
f5 {[%clk 0:02:25.3]} 16. b4 {[%clk 0:01:44.6]} 16... Bd4 {[%clk 0:02:22.1]} 17.
Bc3 {[%clk 0:01:36.2]} 17... Bxc3 {[%clk 0:02:19.8]} 18. Qxc3 {[%clk 0:01:37.1]}
18... Re8 {[%clk 0:02:17.7]} 19. Rac1 {[%clk 0:01:34.5]} 19... Nf8 {[%clk
0:02:13.6]} 20. Nd4 {[%clk 0:01:24.1]} 20... Bd7 {[%clk 0:02:13.2]} 21. Qc5
{[%clk 0:01:09.2]} 21... Rac8 {[%clk 0:02:11.2]} 22. Qxb6 {[%clk 0:01:09.3]}
22... axb6 {[%clk 0:02:11.2]} 23. f4 {[%clk 0:01:06.8]} 23... Ng6 {[%clk
0:02:06.9]} 24. g3 {[%clk 0:01:06.3]} 24... Ne7 {[%clk 0:02:06.6]} 25. Bb5
{[%clk 0:01:01.1]} 25... Nc6 {[%clk 0:02:02.9]} 26. Nb3 {[%clk 0:00:52.4]} 26...
Nb8 {[%clk 0:01:58.1]} 27. Bxd7 {[%clk 0:00:49.4]} 27... Nxd7 {[%clk 0:01:57.8]}
28. Nd4 {[%clk 0:00:49.2]} 28... Kf7 {[%clk 0:01:35.1]} 29. Nb5 {[%clk
0:00:47.6]} 29... Rxc1 {[%clk 0:01:23.6]} 30. Rxc1 {[%clk 0:00:33.9]} 30... Ke7
{[%clk 0:01:22.4]} 31. Rc7 {[%clk 0:00:21.7]} 31... Rb8 {[%clk 0:01:17.9]} 32.
Nd6 {[%clk 0:00:18.6]} 32... Ra8 {[%clk 0:01:16.2]} 33. Rxb7 {[%clk 0:00:15]}
33... Rxa3 {[%clk 0:01:15.9]} 34. Nc8+ {[%clk 0:00:13.1]} 34... Kd8 {[%clk
0:01:09.6]} 35. Nxb6 {[%clk 0:00:13.2]} 35... Nxb6 {[%clk 0:01:04.8]} 36. Rxb6
{[%clk 0:00:14.1]} 36... Ke7 {[%clk 0:01:04.6]} 37. Rb7+ {[%clk 0:00:13.7]}
37... Kf8 {[%clk 0:01:03.6]} 38. b5 {[%clk 0:00:13.6]} 38... Rb3 {[%clk
0:00:58.3]} 39. b6 {[%clk 0:00:06.8]} 39... Rb2 {[%clk 0:00:54.4]} 40. Rb8+
{[%clk 0:00:06.3]} 40... Kf7 {[%clk 0:00:54.4]} 41. Rb7+ {[%clk 0:00:04.9]}
41... Kg6 {[%clk 0:00:54.1]} 42. Rb8 {[%clk 0:00:05]} 42... Kh5 {[%clk
0:00:53.5]} 43. h3 {[%clk 0:00:05.1]} 43... g5 {[%clk 0:00:51.4]} 44. fxg5
{[%clk 0:00:04.8]} 44... Kxg5 {[%clk 0:00:50.7]} 45. b7 {[%clk 0:00:05]} 45...
Kh5 {[%clk 0:00:50.8]} 46. g4+ {[%clk 0:00:04.8]} 46... fxg4 {[%clk 0:00:50.3]}
47. hxg4+ {[%clk 0:00:05.2]} 47... Kh4 {[%clk 0:00:50.8]} 48. g5 {[%clk
0:00:05.4]} 48... Kg3 {[%clk 0:00:51.1]} 49. Kf1 {[%clk 0:00:05.5]} 49... hxg5
{[%clk 0:00:51.1]} 50. Ke1 {[%clk 0:00:03.5]} 50... g4 {[%clk 0:00:50.9]} 51.
Kf1 {[%clk 0:00:02.9]} 51... Rb1+ {[%clk 0:00:49.5]} 52. Ke2 {[%clk 0:00:03.2]}
52... Kg2 {[%clk 0:00:49.8]} 53. Rg8 {[%clk 0:00:02.3]} 53... Rxb7 {[%clk
0:00:48.3]} 54. Rxg4+ {[%clk 0:00:02.8]} 54... Kh3 {[%clk 0:00:48.6]} 55. Rg6
{[%clk 0:00:03.7]} 55... Rb6 {[%clk 0:00:48.9]} 56. Kf3 {[%clk 0:00:04.2]} 56...
Kh4 {[%clk 0:00:48.9]} 57. Kf4 {[%clk 0:00:04.7]} 57... Kh5 {[%clk 0:00:49.2]}
58. Rg5+ {[%clk 0:00:05.2]} 58... Kh6 {[%clk 0:00:48.9]} 59. Rg1 {[%clk
0:00:05.5]} 59... Rb4+ {[%clk 0:00:48.9]} 60. Kf3 {[%clk 0:00:05.9]} 60... Re4
{[%clk 0:00:47.1]} 61. Rh1+ {[%clk 0:00:06.3]} 61... Kg6 {[%clk 0:00:47]} 62.
Rg1+ {[%clk 0:00:06.8]} 62... Kf5 {[%clk 0:00:47.4]} 63. Rg8 {[%clk 0:00:04.2]}
63... Kxe5 {[%clk 0:00:47.3]} 64. Rg5+ {[%clk 0:00:04.1]} 64... Kf6 {[%clk
0:00:46.9]} 65. Rg8 {[%clk 0:00:05]} 65... e5 {[%clk 0:00:46.9]} 66. Rd8 {[%clk
0:00:04.9]} 66... Rd4 {[%clk 0:00:46.1]} 67. Rd6+ {[%clk 0:00:05.2]} 67... Ke7
{[%clk 0:00:45.9]} 68. Ra6 {[%clk 0:00:05.4]} 68... Rb4 {[%clk 0:00:45.2]} 69.
Ra5 {[%clk 0:00:04.5]} 69... Kd6 {[%clk 0:00:44.3]} 70. Ra6+ {[%clk 0:00:04.7]}
70... Kc5 {[%clk 0:00:44.6]} 71. Re6 {[%clk 0:00:05]} 71... e4+ {[%clk
0:00:44.8]} 72. Kf4 {[%clk 0:00:03.3]} 72... Kd4 {[%clk 0:00:44.6]} 73. Re8
{[%clk 0:00:03.1]} 73... Rb1 {[%clk 0:00:44.5]} 74. Ra8 {[%clk 0:00:02.7]} 74...
Rf1+ {[%clk 0:00:44.4]} 75. Kg3 {[%clk 0:00:03.2]} 75... e3 {[%clk 0:00:42.3]}
76. Ra4+ {[%clk 0:00:03.2]} 76... Ke5 {[%clk 0:00:42.5]} 77. Kg2 {[%clk
0:00:02.2]} 77... Rf2+ {[%clk 0:00:42.7]} 78. Kg1 {[%clk 0:00:02.5]} 78... d4
{[%clk 0:00:41.3]} 79. Ra5+ {[%clk 0:00:02.5]} 79... Ke4 {[%clk 0:00:41.4]} 80.
Ra8 {[%clk 0:00:02.7]} 80... Kd3 {[%clk 0:00:40.4]} 81. Re8 {[%clk 0:00:03.6]}
81... Rb2 {[%clk 0:00:39.4]} 82. Kf1 {[%clk 0:00:02.8]} 82... Rb1+ {[%clk
0:00:38.4]} 83. Kg2 {[%clk 0:00:02.9]} 83... Kd2 {[%clk 0:00:38.9]} 84. Kf3
{[%clk 0:00:02.8]} 84... d3 {[%clk 0:00:39.2]} 85. Rxe3 {[%clk 0:00:02.3]} 85...
Rf1+ {[%clk 0:00:39.1]} 86. Ke4 {[%clk 0:00:02.4]} 86... Rf8 {[%clk 0:00:24.7]}
87. Rxd3+ {[%clk 0:00:02.7]} 87... Ke2 {[%clk 0:00:24.6]} 88. Re3+ {[%clk
0:00:03.2]} 88... Kf2 {[%clk 0:00:25]} 89. Ra3 {[%clk 0:00:03.5]} 89... Re8+
{[%clk 0:00:24.7]} 90. Kd5 {[%clk 0:00:03.5]} 90... Rd8+ {[%clk 0:00:25]} 91.
Ke6 {[%clk 0:00:03.8]} 91... Rb8 {[%clk 0:00:24.4]} 92. Ra2+ {[%clk 0:00:03.7]}
92... Ke3 {[%clk 0:00:24.1]} 93. Ra3+ {[%clk 0:00:04.6]} 93... Kd4 {[%clk
0:00:24.1]} 94. Ra4+ {[%clk 0:00:05.5]} 94... Kc5 {[%clk 0:00:24.3]} 95. Rh4
{[%clk 0:00:06.4]} 95... Rb6+ {[%clk 0:00:23.8]} 96. Ke5 {[%clk 0:00:06.7]}
96... Rb5 {[%clk 0:00:23.7]} 97. Rh1 {[%clk 0:00:06.9]} 97... Kb6+ {[%clk
0:00:23]} 98. Kd6 {[%clk 0:00:07]} 98... Rb2 {[%clk 0:00:22.5]} 99. Rc1 {[%clk
0:00:06.9]} 99... Rd2+ {[%clk 0:00:22.1]} 100. Ke5 {[%clk 0:00:07.2]} 100...
Re2+ {[%clk 0:00:22.4]} 101. Kf4 {[%clk 0:00:07.4]} 101... Rf2+ {[%clk
0:00:22.6]} 102. Kg3 {[%clk 0:00:07.6]} 102... Rf7 {[%clk 0:00:22.5]} 103. Kg4
{[%clk 0:00:07.8]} 103... Rg7+ {[%clk 0:00:23]} 104. Kf5 {[%clk 0:00:08]} 104...
Rf7+ {[%clk 0:00:23.4]} 105. Ke6 {[%clk 0:00:08.4]} 105... Rf2 {[%clk
0:00:23.3]} 106. Ke5 {[%clk 0:00:08.4]} 106... Rd2 {[%clk 0:00:23.3]} 107. Ke4
{[%clk 0:00:07.5]} 107... Rd8 {[%clk 0:00:23.2]} 108. Ke5 {[%clk 0:00:07.6]}
108... Re8+ {[%clk 0:00:23.3]} 109. Kd6 {[%clk 0:00:07.3]} 109... Rd8+ {[%clk
0:00:23.5]} 110. Ke7 {[%clk 0:00:07.7]} 110... Rd2 {[%clk 0:00:23.2]} 111. Ke6
{[%clk 0:00:08]} 111... Kb5 {[%clk 0:00:23.2]} 112. Kf7 {[%clk 0:00:07.4]}
112... Kb4 {[%clk 0:00:23.2]} 113. Kg6 {[%clk 0:00:07.7]} 113... Kb3 {[%clk
0:00:23.5]} 114. Kf5 {[%clk 0:00:07.6]} 114... Kb2 {[%clk 0:00:23.8]} 115. Rc8
{[%clk 0:00:07.6]} 115... Rf2+ {[%clk 0:00:23.5]} 116. Ke4 {[%clk 0:00:07.3]}
116... Rh2 {[%clk 0:00:23]} 117. Kd3 {[%clk 0:00:06.9]} 117... Rh3+ {[%clk
0:00:22.9]} 118. Kd4 {[%clk 0:00:06.4]} 118... Rh4+ {[%clk 0:00:22.3]} 119. Ke3
{[%clk 0:00:06.3]} 119... Rh7 {[%clk 0:00:21.8]} 120. Rb8+ {[%clk 0:00:06]}
120... Kc3 {[%clk 0:00:20.6]} 121. Rc8+ {[%clk 0:00:06.2]} 121... Kb4 {[%clk
0:00:19]} 122. Kf4 {[%clk 0:00:06.5]} 122... Rd7 {[%clk 0:00:18.2]} 123. Kf5
{[%clk 0:00:06.8]} 123... Rb7 {[%clk 0:00:18.2]} 124. Ke6 {[%clk 0:00:06.4]}
124... Rb5 {[%clk 0:00:18.3]} 125. Kd6 {[%clk 0:00:05.7]} 125... Rb6+ {[%clk
0:00:18.6]} 126. Kd5 {[%clk 0:00:05.3]} 126... Rb5+ {[%clk 0:00:18.8]} 127. Kd4
{[%clk 0:00:05.4]} 127... Rb7 {[%clk 0:00:19]} 128. Rc1 {[%clk 0:00:04.8]}
128... Rd7+ {[%clk 0:00:18.8]} 129. Ke5 {[%clk 0:00:04.5]} 129... Rd2 {[%clk
0:00:18.8]} 130. Ke4 {[%clk 0:00:04.3]} 130... Kb3 {[%clk 0:00:19.1]} 131. Ke3
{[%clk 0:00:04.2]} 131... Rc2 {[%clk 0:00:19.4]} 132. Rxc2 {[%clk 0:00:04]}
132... Kxc2 {[%clk 0:00:19.6]} 1/2-1/2

[Event "*** Titled Tuesday Blitz"]
[Site "Chess.com"]
[Date "2020.11.10"]
[Round "3"]
[White "ambaixador"]
[Black "Blitzstream"]
[Result "0-1"]
[WhiteElo "2443"]
[BlackElo "2735"]
[TimeControl "180+1"]
[EndTime "10:26:53 PST"]
[Termination "Blitzstream won by resignation"]

1. Nf3 {[%clk 0:03:00.9]} 1... d5 {[%clk 0:03:00.2]} 2. c4 {[%clk 0:03:00.3]}
2... c6 {[%clk 0:02:59.9]} 3. d4 {[%clk 0:03:00.2]} 3... Nf6 {[%clk 0:02:59.9]}
4. g3 {[%clk 0:02:59.8]} 4... Bf5 {[%clk 0:02:59.6]} 5. Qb3 {[%clk 0:02:52.3]}
5... Qb6 {[%clk 0:02:59.3]} 6. Nc3 {[%clk 0:02:52.1]} 6... e6 {[%clk 0:02:58]}
7. c5 {[%clk 0:02:41.5]} 7... Qxb3 {[%clk 0:02:57.6]} 8. axb3 {[%clk 0:02:42.4]}
8... Nbd7 {[%clk 0:02:57.5]} 9. b4 {[%clk 0:02:41.6]} 9... Be7 {[%clk 0:02:57]}
10. b5 {[%clk 0:02:36.2]} 10... O-O {[%clk 0:02:56.1]} 11. Bg2 {[%clk
0:02:35.1]} 11... Ne4 {[%clk 0:02:53.6]} 12. bxc6 {[%clk 0:02:24.2]} 12... bxc6
{[%clk 0:02:51]} 13. O-O {[%clk 0:02:20.7]} 13... Rfb8 {[%clk 0:02:44.4]} 14.
Ra2 {[%clk 0:02:16.1]} 14... Bf6 {[%clk 0:02:27.7]} 15. Bg5 {[%clk 0:01:54.4]}
15... Nxg5 {[%clk 0:02:24.4]} 0-1

[Event "*** Titled Tuesday Blitz"]
[Site "Chess.com"]
[Date "2020.11.10"]
[Round "3"]
[White "Buryshin_Vasyl"]
[Black "zurzan"]
[Result "0-1"]
[WhiteElo "2265"]
[BlackElo "2050"]
[TimeControl "180+1"]
[EndTime "10:27:14 PST"]
[Termination "zurzan won by checkmate"]

1. b3 {[%clk 0:03:00.9]} 1... e5 {[%clk 0:02:58.9]} 2. Bb2 {[%clk 0:03:01.2]}
2... d6 {[%clk 0:02:59.8]} 3. e3 {[%clk 0:03:01.5]} 3... Nc6 {[%clk 0:02:59.6]}
4. d4 {[%clk 0:03:00.9]} 4... e4 {[%clk 0:02:59]} 5. Bb5 {[%clk 0:02:59.7]} 5...
d5 {[%clk 0:02:57.5]} 6. Ne2 {[%clk 0:02:54.8]} 6... Nf6 {[%clk 0:02:56.9]} 7.
c4 {[%clk 0:02:52]} 7... a6 {[%clk 0:02:55.3]} 8. Bxc6+ {[%clk 0:02:51.7]} 8...
bxc6 {[%clk 0:02:55.4]} 9. cxd5 {[%clk 0:02:51.5]} 9... cxd5 {[%clk 0:02:55.2]}
10. O-O {[%clk 0:02:52.1]} 10... Bd6 {[%clk 0:02:52.3]} 11. Nbc3 {[%clk
0:02:51.7]} 11... O-O {[%clk 0:02:50.7]} 12. Rc1 {[%clk 0:02:46.1]} 12... Be6
{[%clk 0:02:48.1]} 13. Rc2 {[%clk 0:02:37.1]} 13... Bxh2+ {[%clk 0:02:40.4]} 14.
Kh1 {[%clk 0:02:03.1]} 14... Bd6 {[%clk 0:02:37.9]} 15. Ng3 {[%clk 0:01:32.7]}
15... Ng4 {[%clk 0:02:35.1]} 16. Nce2 {[%clk 0:01:28.4]} 16... Qh4+ {[%clk
0:02:33.9]} 17. Kg1 {[%clk 0:01:27.9]} 17... Qh2# {[%clk 0:02:33.8]} 0-1

[Event "*** Titled Tuesday Blitz"]
[Site "Chess.com"]
[Date "2020.11.10"]
[Round "3"]
[White "Boudicca64"]
[Black "orestn"]
[Result "0-1"]
[WhiteElo "1820"]
[BlackElo "2253"]
[TimeControl "180+1"]
[EndTime "10:28:07 PST"]
[Termination "orestn won by resignation"]

1. e4 {[%clk 0:03:00.9]} 1... e5 {[%clk 0:02:58.9]} 2. d4 {[%clk 0:02:59.4]}
2... Nc6 {[%clk 0:02:59.7]} 3. dxe5 {[%clk 0:02:58.2]} 3... Nxe5 {[%clk
0:02:59.2]} 4. f4 {[%clk 0:02:58.5]} 4... Nc6 {[%clk 0:03:00.1]} 5. Bc4 {[%clk
0:02:57.9]} 5... d6 {[%clk 0:03:01]} 6. Nc3 {[%clk 0:02:56.4]} 6... Be7 {[%clk
0:03:01]} 7. Be3 {[%clk 0:02:56]} 7... Nf6 {[%clk 0:03:01.2]} 8. Qe2 {[%clk
0:02:47.7]} 8... O-O {[%clk 0:02:58.5]} 9. O-O-O {[%clk 0:02:46]} 9... Be6
{[%clk 0:02:57.7]} 10. Bxe6 {[%clk 0:02:39.7]} 10... fxe6 {[%clk 0:02:57]} 11.
Qc4 {[%clk 0:02:39.9]} 11... Qc8 {[%clk 0:02:53.3]} 12. f5 {[%clk 0:02:38.8]}
12... Ng4 {[%clk 0:02:35.4]} 13. Bf4 {[%clk 0:02:13]} 13... Nf2 {[%clk
0:02:31.2]} 14. Nf3 {[%clk 0:02:08.5]} 14... Nxh1 {[%clk 0:02:26.9]} 15. Rxh1
{[%clk 0:02:07]} 15... Kh8 {[%clk 0:02:00.2]} 16. Bg5 {[%clk 0:02:03.8]} 16...
exf5 {[%clk 0:01:53.8]} 17. Nd5 {[%clk 0:02:02.4]} 17... Bxg5+ {[%clk
0:01:50.2]} 18. Nxg5 {[%clk 0:02:01.2]} 18... fxe4 {[%clk 0:01:44.7]} 19. Qxe4
{[%clk 0:01:47.4]} 19... Qf5 {[%clk 0:01:39.3]} 20. Qh4 {[%clk 0:01:46]} 20...
h6 {[%clk 0:01:36.4]} 21. Ne3 {[%clk 0:01:41.9]} 21... Qxg5 {[%clk 0:01:35.3]}
0-1

[Event "*** Titled Tuesday Blitz"]
[Site "Chess.com"]
[Date "2020.11.10"]
[Round "3"]
[White "DenisQ"]
[Black "Chesstrainer1"]
[Result "0-1"]
[WhiteElo "2627"]
[BlackElo "2421"]
[TimeControl "180+1"]
[EndTime "10:28:17 PST"]
[Termination "Chesstrainer1 won by resignation"]

1. Nf3 {[%clk 0:03:00.9]} 1... Nf6 {[%clk 0:02:59]} 2. c4 {[%clk 0:03:00.6]}
2... g6 {[%clk 0:02:58.7]} 3. Nc3 {[%clk 0:03:00.3]} 3... Bg7 {[%clk 0:02:59]}
4. g3 {[%clk 0:03:00.3]} 4... O-O {[%clk 0:02:58.4]} 5. Bg2 {[%clk 0:03:00.3]}
5... d6 {[%clk 0:02:56.7]} 6. O-O {[%clk 0:03:00]} 6... e5 {[%clk 0:02:56.5]} 7.
Rb1 {[%clk 0:02:59.4]} 7... a5 {[%clk 0:02:53.8]} 8. a3 {[%clk 0:02:59]} 8... c6
{[%clk 0:02:39.4]} 9. b4 {[%clk 0:02:57.9]} 9... axb4 {[%clk 0:02:38.8]} 10.
axb4 {[%clk 0:02:58.8]} 10... e4 {[%clk 0:02:18.7]} 11. Nd4 {[%clk 0:02:55.2]}
11... d5 {[%clk 0:02:19.6]} 12. d3 {[%clk 0:02:37.1]} 12... exd3 {[%clk
0:01:46.9]} 13. Qxd3 {[%clk 0:02:34.3]} 13... dxc4 {[%clk 0:01:42.5]} 14. Qxc4
{[%clk 0:02:35.2]} 14... Nbd7 {[%clk 0:01:36.9]} 15. Rd1 {[%clk 0:02:30.7]}
15... Qe7 {[%clk 0:01:30.1]} 16. b5 {[%clk 0:02:24.3]} 16... Ne5 {[%clk
0:01:10.9]} 17. Qb3 {[%clk 0:02:18.9]} 17... c5 {[%clk 0:01:10]} 18. Nf3 {[%clk
0:02:16.6]} 18... Be6 {[%clk 0:01:04.3]} 19. Qc2 {[%clk 0:02:09.1]} 19... Bf5
{[%clk 0:01:02.4]} 20. e3 {[%clk 0:02:08.1]} 0-1

[Event "*** Titled Tuesday Blitz"]
[Site "Chess.com"]
[Date "2020.11.10"]
[Round "3"]
[White "Kazmin_Dmitrij"]
[Black "Flutaga"]
[Result "1-0"]
[WhiteElo "2267"]
[BlackElo "1974"]
[TimeControl "180+1"]
[EndTime "10:28:36 PST"]
[Termination "Kazmin_Dmitrij won by resignation"]

1. e4 {[%clk 0:03:00.9]} 1... e5 {[%clk 0:02:59.6]} 2. Nf3 {[%clk 0:03:00.2]}
2... Nc6 {[%clk 0:03:00]} 3. Bb5 {[%clk 0:02:59.4]} 3... f5 {[%clk 0:02:59.4]}
4. Nc3 {[%clk 0:02:38.5]} 4... fxe4 {[%clk 0:02:58.7]} 5. Nxe4 {[%clk
0:02:36.9]} 5... d5 {[%clk 0:02:58.4]} 6. Nxe5 {[%clk 0:02:28.3]} 6... dxe4
{[%clk 0:02:54.3]} 7. Nxc6 {[%clk 0:02:27.2]} 7... Qd5 {[%clk 0:02:51.9]} 8. c4
{[%clk 0:02:23.4]} 8... Qd6 {[%clk 0:02:49.3]} 9. Nxa7+ {[%clk 0:02:21]} 9...
Bd7 {[%clk 0:02:47]} 10. Bxd7+ {[%clk 0:02:20.7]} 10... Qxd7 {[%clk 0:02:46.8]}
11. Qh5+ {[%clk 0:02:15.7]} 11... g6 {[%clk 0:02:46]} 12. Qe5+ {[%clk
0:02:14.4]} 12... Kf7 {[%clk 0:02:46.1]} 13. Nb5 {[%clk 0:02:09.2]} 13... Bg7
{[%clk 0:02:41.6]} 14. Qxc7 {[%clk 0:01:53.5]} 14... Qxc7 {[%clk 0:02:38.7]} 15.
Nxc7 {[%clk 0:01:53.3]} 15... Nf6 {[%clk 0:02:36.3]} 16. Nxa8 {[%clk 0:01:51.5]}
16... Rxa8 {[%clk 0:02:37.2]} 17. O-O {[%clk 0:01:47.1]} 17... Nd7 {[%clk
0:02:36.3]} 18. f3 {[%clk 0:01:45.1]} 18... exf3 {[%clk 0:02:33.5]} 19. Rxf3+
{[%clk 0:01:44.6]} 19... Ke6 {[%clk 0:02:33.6]} 20. d3 {[%clk 0:01:31]} 20...
Ne5 {[%clk 0:02:29.3]} 21. Re3 {[%clk 0:01:15.5]} 21... Kf5 {[%clk 0:02:28.2]}
22. Bd2 {[%clk 0:01:09.1]} 22... g5 {[%clk 0:02:11.3]} 23. Rf1+ {[%clk
0:01:06.5]} 23... Kg6 {[%clk 0:02:11.3]} 24. Bc3 {[%clk 0:00:54.2]} 24... Nc6
{[%clk 0:02:10.4]} 25. Re6+ {[%clk 0:00:53.1]} 25... Kh5 {[%clk 0:02:08.6]} 26.
Bxg7 {[%clk 0:00:51.8]} 1-0

[Event "*** Titled Tuesday Blitz"]
[Site "Chess.com"]
[Date "2020.11.10"]
[Round "3"]
[White "andriipalchuk"]
[Black "Sven_Tica"]
[Result "0-1"]
[WhiteElo "2430"]
[BlackElo "2692"]
[TimeControl "180+1"]
[EndTime "10:29:00 PST"]
[Termination "Sven_Tica won by resignation"]

1. d4 {[%clk 0:03:00.9]} 1... d5 {[%clk 0:03:00]} 2. c4 {[%clk 0:02:59.6]} 2...
e6 {[%clk 0:03:00.4]} 3. Nc3 {[%clk 0:02:58.3]} 3... Nf6 {[%clk 0:03:00.3]} 4.
cxd5 {[%clk 0:02:58.1]} 4... exd5 {[%clk 0:03:01.2]} 5. Bg5 {[%clk 0:02:55.2]}
5... c6 {[%clk 0:03:01.4]} 6. e3 {[%clk 0:02:54]} 6... Be6 {[%clk 0:03:00.8]} 7.
Bd3 {[%clk 0:02:52.4]} 7... Nbd7 {[%clk 0:03:00.4]} 8. Nf3 {[%clk 0:02:52.3]}
8... h6 {[%clk 0:03:00.7]} 9. Bh4 {[%clk 0:02:49]} 9... g5 {[%clk 0:03:01.3]}
10. Bg3 {[%clk 0:02:48.4]} 10... Nh5 {[%clk 0:03:01.9]} 11. Qc2 {[%clk
0:02:40.4]} 11... Nxg3 {[%clk 0:03:01.4]} 12. hxg3 {[%clk 0:02:39.7]} 12... Bd6
{[%clk 0:02:59.9]} 13. Rb1 {[%clk 0:02:36.7]} 13... Qe7 {[%clk 0:02:53.4]} 14.
Bf5 {[%clk 0:02:08.5]} 14... O-O-O {[%clk 0:02:48.3]} 15. Bxe6 {[%clk
0:01:48.3]} 15... fxe6 {[%clk 0:02:49.2]} 16. Ke2 {[%clk 0:01:28]} 16... Kb8
{[%clk 0:02:44.9]} 17. b4 {[%clk 0:01:26.2]} 17... Rc8 {[%clk 0:02:40.8]} 18. a3
{[%clk 0:01:25.1]} 18... g4 {[%clk 0:02:33.3]} 19. Nd2 {[%clk 0:01:03.1]} 19...
e5 {[%clk 0:02:30.1]} 20. Nb3 {[%clk 0:00:57.9]} 20... Nb6 {[%clk 0:02:23.5]}
21. dxe5 {[%clk 0:00:44.6]} 21... Qxe5 {[%clk 0:02:24.4]} 22. Nc5 {[%clk
0:00:36.4]} 22... Bxc5 {[%clk 0:02:18.4]} 23. bxc5 {[%clk 0:00:37.3]} 23... Nc4
{[%clk 0:02:18.9]} 24. Rhg1 {[%clk 0:00:25.3]} 24... Rhf8 {[%clk 0:02:17.7]} 25.
Qb3 {[%clk 0:00:23.3]} 25... Rxf2+ {[%clk 0:02:13.1]} 0-1

[Event "*** Titled Tuesday Blitz"]
[Site "Chess.com"]
[Date "2020.11.10"]
[Round "3"]
[White "dopolian"]
[Black "valeriocarnicelli"]
[Result "0-1"]
[WhiteElo "2369"]
[BlackElo "2571"]
[TimeControl "180+1"]
[EndTime "10:29:04 PST"]
[Termination "valeriocarnicelli won by resignation"]

1. e4 {[%clk 0:03:00.9]} 1... e5 {[%clk 0:03:00]} 2. Nf3 {[%clk 0:03:00.5]} 2...
Nc6 {[%clk 0:03:00.5]} 3. Bb5 {[%clk 0:03:00.7]} 3... a6 {[%clk 0:03:00.6]} 4.
Ba4 {[%clk 0:02:59.5]} 4... Nf6 {[%clk 0:03:01]} 5. O-O {[%clk 0:02:59.1]} 5...
Be7 {[%clk 0:03:01.1]} 6. Re1 {[%clk 0:02:59.3]} 6... b5 {[%clk 0:03:01.1]} 7.
Bb3 {[%clk 0:02:58.7]} 7... O-O {[%clk 0:03:01.5]} 8. a4 {[%clk 0:02:53.8]} 8...
Rb8 {[%clk 0:02:59.9]} 9. d3 {[%clk 0:02:52.9]} 9... d6 {[%clk 0:02:59.8]} 10.
Nc3 {[%clk 0:02:51]} 10... Bg4 {[%clk 0:02:59]} 11. axb5 {[%clk 0:02:44.9]}
11... Nd4 {[%clk 0:02:52.6]} 12. Be3 {[%clk 0:02:41.3]} 12... Bxf3 {[%clk
0:02:47.8]} 13. gxf3 {[%clk 0:02:40.1]} 13... Nxb3 {[%clk 0:02:48.5]} 14. cxb3
{[%clk 0:02:40.6]} 14... axb5 {[%clk 0:02:49]} 15. Ne2 {[%clk 0:02:31.6]} 15...
c5 {[%clk 0:02:43.4]} 16. f4 {[%clk 0:02:27.5]} 16... Ng4 {[%clk 0:02:43.1]} 17.
Ng3 {[%clk 0:02:21.9]} 17... Nxe3 {[%clk 0:02:27.5]} 18. fxe3 {[%clk 0:02:22.8]}
18... exf4 {[%clk 0:02:27.7]} 19. exf4 {[%clk 0:02:19.1]} 19... Bf6 {[%clk
0:02:28.1]} 20. Qd2 {[%clk 0:02:11.3]} 20... Bd4+ {[%clk 0:02:25.4]} 21. Kh1
{[%clk 0:02:10]} 21... Qh4 {[%clk 0:02:08.4]} 22. Nf5 {[%clk 0:02:05.5]} 22...
Qh3 {[%clk 0:02:08.3]} 23. Nxd4 {[%clk 0:01:55.2]} 23... cxd4 {[%clk 0:02:09]}
24. Rg1 {[%clk 0:01:40.2]} 24... g6 {[%clk 0:01:59.8]} 25. Rg3 {[%clk 0:01:39]}
25... Qe6 {[%clk 0:01:57.3]} 26. Qb4 {[%clk 0:01:35.7]} 26... Qf6 {[%clk
0:01:49.5]} 27. Rf1 {[%clk 0:01:25.5]} 27... Rfc8 {[%clk 0:01:48.1]} 28. Rg5
{[%clk 0:01:22.1]} 28... Rc2 {[%clk 0:01:44.7]} 29. Rxb5 {[%clk 0:01:20.6]}
29... Rxb5 {[%clk 0:01:40.2]} 30. Qxb5 {[%clk 0:01:21.5]} 30... Qh4 {[%clk
0:01:40]} 0-1

[Event "*** Titled Tuesday Blitz"]
[Site "Chess.com"]
[Date "2020.11.10"]
[Round "3"]
[White "Aemulus20"]
[Black "Phenix2k"]
[Result "1-0"]
[WhiteElo "2589"]
[BlackElo "2387"]
[TimeControl "180+1"]
[EndTime "10:29:15 PST"]
[Termination "Aemulus20 won by resignation"]

1. e4 {[%clk 0:03:00.9]} 1... d5 {[%clk 0:02:59.6]} 2. exd5 {[%clk 0:03:00.3]}
2... Nf6 {[%clk 0:03:00.1]} 3. d4 {[%clk 0:02:59.8]} 3... Bg4 {[%clk 0:03:00.2]}
4. Be2 {[%clk 0:02:59.4]} 4... Bxe2 {[%clk 0:02:59.6]} 5. Qxe2 {[%clk
0:02:59.5]} 5... Qxd5 {[%clk 0:02:59.4]} 6. Nc3 {[%clk 0:02:58.9]} 6... Qxg2
{[%clk 0:02:54.2]} 7. Qf3 {[%clk 0:02:47.2]} 7... Qxf3 {[%clk 0:02:52.9]} 8.
Nxf3 {[%clk 0:02:48.1]} 8... c6 {[%clk 0:02:50.8]} 9. a4 {[%clk 0:02:47.2]} 9...
e6 {[%clk 0:02:48.2]} 10. Rg1 {[%clk 0:02:46.9]} 10... g6 {[%clk 0:02:47.4]} 11.
a5 {[%clk 0:02:44.4]} 11... a6 {[%clk 0:02:46.4]} 12. Ne5 {[%clk 0:02:43.8]}
12... Nbd7 {[%clk 0:02:44.6]} 13. Nc4 {[%clk 0:02:42.6]} 13... O-O-O {[%clk
0:02:40.3]} 14. Bf4 {[%clk 0:02:40.2]} 14... Nd5 {[%clk 0:02:37.1]} 15. Bg3
{[%clk 0:02:35.4]} 15... Bb4 {[%clk 0:02:34.3]} 16. Kf1 {[%clk 0:02:23.9]} 16...
Nxc3 {[%clk 0:02:17.8]} 17. bxc3 {[%clk 0:02:23.2]} 17... Be7 {[%clk 0:02:17.2]}
18. Rb1 {[%clk 0:02:19.7]} 18... Rde8 {[%clk 0:02:07.3]} 19. Kg2 {[%clk
0:02:14.4]} 19... h5 {[%clk 0:01:55.4]} 20. h3 {[%clk 0:02:02]} 20... g5 {[%clk
0:01:43.7]} 21. Rb3 {[%clk 0:01:59.4]} 21... f5 {[%clk 0:01:37.3]} 22. Bd6
{[%clk 0:01:42.8]} 22... Nf6 {[%clk 0:01:18.8]} 23. Rgb1 {[%clk 0:01:35.1]}
23... Ne4 {[%clk 0:01:18.4]} 24. Be5 {[%clk 0:01:30.2]} 24... b5 {[%clk
0:01:01]} 25. axb6 {[%clk 0:01:24.2]} 1-0